bitfinex-derivatives/quotes_SOLF0:USTF0_20250919
["timestamp","ask_amount","ask_price","bid_price","bid_amount"]
[1758242040325,8.80581164,248.25,248.24,0.03029526]
[1758242041620,6.74,248.25,248.24,0.03029526]
[1758242067246,104.82,248.25,248.24,0.03029526]
[1758242074247,104.8,248.25,248.24,0.03029526]
[1758242077551,6.74,248.25,248.24,0.03029526]
[1758242077750,104.8,248.25,248.24,0.03029526]
[1758242078246,6.48,248.21,248.11,6.44]
[1758242078443,6.48,248.18,248.11,6.44]
[1758242078644,98.1,248.17,248.11,6.44]
[1758242078844,4.52523266,248.24,248.11,6.44]
[1758242078845,98.1,248.16,248.11,6.44]
[1758242079049,98.1,248.16,248.1,2.06581164]
[1758242079050,98.12,248.17,248.13,2.06581164]
[1758242079251,98.12,248.17,248.14,6.44]
[1758242080253,98.12,248.17,248.13,2.06581164]
[1758242080754,98.12,248.17,248.14,6.44]
[1758242081048,98.12,248.17,248.13,2.06581164]
[1758242081250,98.12,248.17,248.14,6.44]
[1758242081952,6.48,248.22,248.14,6.44]
[1758242082152,47.86,248.21,248.14,6.44]
[1758242082953,86.3,248.2,248.14,6.44]
[1758242083755,6.48,248.22,248.14,6.44]
[1758242084053,55.64,248.21,248.14,6.44]
[1758242085255,6.48,248.22,248.14,6.44]
[1758242085455,93.56,248.21,248.14,6.44]
[1758242085749,6.48,248.22,248.14,6.44]
[1758242086049,98.1,248.21,248.15,6.44]
[1758242087561,6.48,248.2,248.13,3.36818324]
[1758242087855,6.48,248.2,248.07,3.626]
[1758242087856,6.48,248.2,248.09,3.36818324]
[1758242088057,100.16581164,248.21,248.09,3.36818324]
[1758242088058,2.06581164,248.18,248.09,3.36818324]
[1758242088252,2.06581164,248.18,248.07,9.80818324]
[1758242088549,6.48,248.17,248.07,9.80818324]
[1758242088754,2.06581164,248.18,248.07,9.80818324]
[1758242088949,6.48,248.17,248.07,9.80818324]
[1758242089355,2.06581164,248.18,248.07,9.80818324]
[1758242089553,6.48,248.17,248.07,9.80818324]
[1758242089752,2.06581164,248.18,248.07,9.80818324]
[1758242090051,6.48,248.17,248.07,9.80818324]
[1758242091557,18.36,248.17,248.08,9.80818324]
[1758242091756,6.48,248.17,248.08,9.80818324]
[1758242091957,18.5,248.17,248.08,9.80818324]
[1758242092656,6.48,248.17,248.09,9.80818324]
[1758242092959,28.02,248.17,248.09,9.80818324]
[1758242093554,6.48,248.17,248.09,9.80818324]
[1758242095263,6.48,248.17,248.09,6.44]
[1758242095763,6.48,248.17,248.09,7.7632316]
[1758242098564,0.02543129,248.15,248.09,7.7632316]
[1758242101368,0.02543129,248.15,248.14,6.69]
[1758242102071,0.02543129,248.15,248.14,7.09]
[1758242103871,6.91543129,248.15,248.12,1.3232316]
[1758242104271,6.91543129,248.15,248.11,6.69]
[1758242104570,6.91543129,248.15,248.12,6.69]
[1758242104771,0.02543129,248.15,248.13,1.3232316]
[1758242104971,0.02543129,248.15,248.14,6.69]
[1758242106672,0.02543129,248.15,248.12,8.0132316]
[1758242107768,6.91543129,248.15,248.12,6.69]
[1758242108071,6.89,248.14,248.1,8.04346699]
[1758242108270,6.89,248.14,248.11,6.69]
[1758242108675,0.02543129,248.15,248.11,6.69]
[1758242108866,0.02543129,248.15,248.1,1.35346699]
[1758242109670,6.91543129,248.15,248.11,6.69]
[1758242110673,6.91543129,248.15,248.1,1.35346699]
[1758242111368,6.91543129,248.15,248.11,6.69]
[1758242111572,6.91543129,248.15,248.1,1.35346699]
[1758242111770,6.91543129,248.15,248.11,6.69]
[1758242113682,6.89,248.14,248.11,6.69]
[1758242113975,0.02543129,248.15,248.1,1.35346699]
[1758242114176,6.89,248.14,248.1,1.35346699]
[1758242114382,6.89,248.14,248.1,8.04346699]
[1758242115482,0.02543129,248.15,248.14,6.69]
[1758242116083,6.91543129,248.15,248.12,1.3232316]
[1758242116283,6.91543129,248.15,248.11,6.69]
[1758242116483,6.89,248.14,248.1,0.03023539]
[1758242116679,0.02543129,248.15,248.1,0.03023539]
[1758242117285,6.89,248.14,248.1,0.03023539]
[1758242117480,0.02543129,248.15,248.1,0.03023539]
[1758242117689,6.89,248.13,248.1,0.03023539]
[1758242117994,1.3232316,248.14,248.1,0.03023539]
[1758242118490,1.3232316,248.13,248.1,0.03023539]
[1758242118685,6.89,248.12,248.1,0.03023539]
[1758242120089,1.3232316,248.13,248.1,0.03023539]
[1758242120491,6.89,248.12,248.1,0.03023539]
[1758242120987,1.3232316,248.13,248.1,0.03023539]
[1758242121186,1.3232316,248.11,248.1,0.03023539]
[1758242121491,8.2132316,248.11,248.1,0.03023539]
[1758242121887,6.89,248.11,248.1,0.03023539]
[1758242122388,8.2132316,248.13,248.1,0.03023539]
[1758242122582,6.89,248.12,248.1,0.03023539]
[1758242123887,1.34866289,248.15,248.1,0.03023539]
[1758242124192,8.23866289,248.15,248.11,6.69]
[1758242124793,1.34866289,248.15,248.11,6.69]
[1758242124991,6.89,248.14,248.11,6.69]
[1758242125395,0.02543129,248.15,248.11,6.69]
[1758242125892,0.02543129,248.15,248.1,0.03023539]
[1758242126092,0.02543129,248.15,248.1,3.39841863]
[1758242126590,0.02543129,248.15,248.12,6.69]
[1758242126891,0.02543129,248.15,248.11,1.3232316]
[1758242127096,0.02543129,248.15,248.11,6.69]
[1758242127296,0.02543129,248.15,248.11,3.36818324]
[1758242127990,6.88,248.14,248.11,3.36818324]
[1758242128196,1.3232316,248.12,248.1,0.03023539]
[1758242128399,8.2032316,248.12,248.1,0.03023539]
[1758242128586,6.88,248.11,248.1,0.03023539]
[1758242130692,0.02543129,248.15,248.1,0.03023539]
[1758242130897,0.02543129,248.15,248.11,7.0]
[1758242131493,6.90543129,248.15,248.11,7.0]
[1758242131799,6.88,248.14,248.1,0.03023539]
[1758242132398,6.88,248.14,248.1,7.03023539]
[1758242133196,6.88,248.14,248.1,3.39841863]
[1758242133402,6.88,248.14,248.11,7.0]
[1758242133701,6.88,248.14,248.1,10.39841863]
[1758242134500,6.88,248.14,248.1,7.03023539]
[1758242135104,6.88,248.14,248.11,7.0]
[1758242135403,6.88,248.14,248.1,10.39841863]
[1758242136105,0.02543129,248.15,248.1,3.39841863]
[1758242136306,6.88,248.14,248.11,7.0]
[1758242138002,8.2032316,248.14,248.1,3.39841863]
[1758242138199,6.88,248.13,248.1,3.39841863]
[1758242138601,6.88,248.13,248.1,10.39841863]
[1758242139107,6.88,248.13,248.1,7.03023539]
[1758242140404,1.3232316,248.14,248.1,0.03023539]
[1758242140604,6.88,248.13,248.1,0.03023539]
[1758242141106,6.88,248.13,248.1,7.03023539]
[1758242141303,6.88,248.13,248.1,10.39841863]
[1758242143310,6.88,248.13,248.1,7.03023539]
[1758242143509,1.34866289,248.15,248.11,7.0]
[1758242143710,6.88,248.14,248.11,7.0]
[1758242143906,8.2032316,248.14,248.11,7.0]
[1758242144111,6.88,248.13,248.1,0.03023539]
[1758242145112,6.88,248.13,248.1,7.03023539]
[1758242145609,1.3232316,248.14,248.11,7.0]
[1758242146013,1.3232316,248.14,248.1,0.03023539]
[1758242146214,1.3232316,248.14,248.11,7.0]
[1758242146613,1.3232316,248.14,248.1,0.03023539]
[1758242147218,1.3232316,248.14,248.11,7.0]
[1758242147413,1.3232316,248.14,248.1,0.03023539]
[1758242147608,1.3232316,248.14,248.11,7.0]
[1758242148011,0.02543129,248.15,248.1,0.03023539]
[1758242148212,0.02543129,248.15,248.1,3.39841863]
[1758242148521,6.90543129,248.15,248.11,7.0]
[1758242149317,6.88,248.14,248.11,7.0]
[1758242149813,1.3232316,248.14,248.11,7.0]
[1758242150018,6.88,248.13,248.1,3.39841863]
[1758242150217,6.88,248.13,248.1,0.03023539]
[1758242150619,6.88,248.13,248.1,7.03023539]
[1758242153223,1.34866289,248.15,248.11,7.0]
[1758242153422,1.34866289,248.15,248.1,0.03023539]
[1758242153624,8.22866289,248.15,248.11,7.0]
[1758242153819,6.88,248.14,248.11,7.0]
[1758242156024,6.5,248.14,248.11,7.0]
[1758242156926,0.02543129,248.15,248.1,3.39841863]
[1758242157127,1.34866289,248.15,248.11,6.81]
[1758242157326,0.02543129,248.15,248.11,6.81]
[1758242158026,0.02543129,248.15,248.1,3.39841863]
[1758242158226,0.02543129,248.15,248.11,6.88]
[1758242158622,0.02543129,248.15,248.1,3.39841863]
[1758242159024,0.02543129,248.15,248.12,6.88]
[1758242159226,0.02543129,248.15,248.13,6.88]
[1758242160322,0.02543129,248.15,248.1,0.03023539]
[1758242160323,7.00543129,248.15,248.11,3.36818324]
[1758242160724,7.00543129,248.15,248.12,6.88]
[1758242160920,0.02543129,248.15,248.11,3.36818324]
[1758242161319,0.02543129,248.15,248.12,6.88]
[1758242161521,0.02543129,248.15,248.11,3.36818324]
[1758242162924,0.02543129,248.15,248.12,6.88]
[1758242163728,0.02543129,248.15,248.11,3.36818324]
[1758242163930,0.02543129,248.15,248.12,6.88]
[1758242164232,6.98,248.14,248.11,3.36818324]
[1758242165030,0.02543129,248.15,248.12,6.88]
[1758242166833,0.02543129,248.15,248.11,3.36818324]
[1758242167028,0.02543129,248.15,248.12,6.88]
[1758242167729,0.02543129,248.15,248.11,3.36818324]
[1758242168332,0.02543129,248.15,248.12,6.88]
[1758242168631,0.02543129,248.15,248.11,3.36818324]
[1758242168831,0.02543129,248.15,248.12,6.88]
[1758242169228,0.02543129,248.15,248.11,3.36818324]
[1758242169432,0.02543129,248.15,248.12,6.88]
[1758242169631,0.02543129,248.15,248.11,3.36818324]
[1758242169833,0.02543129,248.15,248.12,6.88]
[1758242170135,0.02543129,248.15,248.11,3.36818324]
[1758242170636,0.02543129,248.15,248.12,6.88]
[1758242171335,0.02543129,248.15,248.11,3.36818324]
[1758242171636,0.02543129,248.15,248.12,6.88]
[1758242172537,0.02543129,248.15,248.11,3.36818324]
[1758242172837,0.02543129,248.15,248.12,6.88]
[1758242173136,0.02543129,248.15,248.11,3.36818324]
[1758242173336,0.02543129,248.15,248.12,6.88]
[1758242173536,0.02543129,248.15,248.11,3.36818324]
[1758242174342,0.02543129,248.15,248.12,6.88]
[1758242174643,0.02543129,248.15,248.11,3.36818324]
[1758242174835,0.02543129,248.15,248.12,6.88]
[1758242175231,0.02543129,248.15,248.13,6.88]
[1758242175437,0.02543129,248.15,248.12,3.36818324]
[1758242175839,0.02543129,248.15,248.13,6.88]
[1758242176345,0.02543129,248.15,248.12,3.36818324]
[1758242176734,0.02543129,248.15,248.13,6.88]
[1758242178042,0.02543129,248.15,248.12,3.36818324]
[1758242178242,0.02543129,248.15,248.13,6.88]
[1758242179846,0.02543129,248.15,248.14,6.88]
[1758242180446,0.02543129,248.15,248.14,10.25464846]
[1758242180847,0.02543129,248.15,248.14,6.88]
[1758242181150,0.02543129,248.15,248.14,10.25432696]
[1758242182050,0.02543129,248.15,248.14,6.88]
[1758242183148,0.02543129,248.15,248.14,10.25293175]
[1758242183638,2.06737217,248.27,248.19,6.88]
[1758242183839,6.98,248.26,248.19,6.88]
[1758242184042,2.06737217,248.24,248.19,6.88]
[1758242184250,6.98,248.2,248.15,6.88]
[1758242184548,6.98,248.2,248.14,6.88]
[1758242184945,2.06737217,248.18,248.15,0.02694015]
[1758242185149,6.98,248.17,248.15,0.02694015]
[1758242185447,2.06737217,248.17,248.11,6.88]
[1758242185647,9.04737217,248.17,248.14,0.02656144]
[1758242186349,6.98,248.16,248.14,0.02656144]
[1758242187355,2.06737217,248.17,248.14,0.02656144]
[1758242188448,6.56,248.16,248.14,0.02656144]
[1758242190855,6.56,248.16,248.05,6.87]
[1758242191054,8.62737217,248.09,248.05,6.87]
[1758242191350,8.62737217,248.09,248.03,3.37163713]
[1758242191550,2.06737217,248.09,248.04,6.87]
[1758242192650,2.06737217,248.09,248.03,3.37163713]
[1758242193052,2.06737217,248.09,248.04,6.87]
[1758242193552,2.06737217,248.09,248.03,3.37163713]
[1758242193757,2.06737217,248.09,248.04,6.87]
[1758242194353,2.06737217,248.09,248.03,3.37163713]
[1758242194759,2.06737217,248.09,248.03,10.24163713]
[1758242195452,2.06737217,248.09,248.03,3.37163713]
[1758242195953,2.06737217,248.09,248.04,6.87]
[1758242196155,2.06737217,248.09,248.02,3.37163713]
[1758242196352,2.06737217,248.09,248.03,6.87]
[1758242196852,2.06737217,248.09,247.96,6.67331056]
[1758242196853,6.56,248.12,248.0,10.24163713]
[1758242197054,2.06737217,248.07,248.0,10.24163713]
[1758242197755,6.56,248.09,247.95,3.6279]
[1758242197756,12.64,248.15,248.01,10.24163713]
[1758242197957,8.62737217,248.14,248.02,6.87]
[1758242198257,8.62737217,248.14,248.03,6.87]
[1758242198653,6.56,248.14,248.03,6.87]
[1758242205259,2.06737217,248.12,248.03,6.87]
[1758242208263,0.02664081,248.1,248.03,6.87]
[1758242210166,0.02664081,248.1,248.04,0.02710596]
[1758242212360,0.02664081,248.1,248.05,6.87]
[1758242212556,0.02664081,248.1,248.04,0.02710596]
[1758242212964,0.02664081,248.1,248.05,6.87]
[1758242215067,0.02664081,248.1,248.05,6.68]
[1758242215366,0.02664081,248.1,248.04,0.02710596]
[1758242215562,0.02664081,248.1,248.05,6.68]
[1758242215762,0.02664081,248.1,248.04,0.02710596]
[1758242215967,0.02664081,248.1,248.04,6.70710596]
[1758242219775,1.32405698,248.09,248.04,6.70710596]
[1758242219975,1.32405698,248.09,248.04,0.02710596]
[1758242221073,1.32405698,248.06,248.04,7.09710596]
[1758242222267,1.32405698,248.06,248.04,0.02710596]
[1758242222471,1.32405698,248.06,248.05,7.07]
[1758242225072,8.27405698,248.08,248.04,0.02710596]
[1758242225382,6.95,248.05,248.04,0.02710596]
[1758242229873,1.32405698,248.06,248.04,0.02710596]
[1758242230070,1.32405698,248.06,248.04,7.09710596]
[1758242230472,6.95,248.07,248.04,7.09710596]
[1758242230979,6.97664081,248.1,248.04,0.02710596]
[1758242231184,1.32405698,248.09,248.04,0.02710596]
[1758242231484,8.27405698,248.09,248.05,7.07]
[1758242231786,6.95,248.08,248.05,7.07]
[1758242232679,6.95,248.08,248.04,0.02710596]
[1758242232879,6.95,248.08,248.05,7.07]
[1758242233376,0.02664081,248.1,248.06,3.36767727]
[1758242233576,0.02664081,248.1,248.07,1.32405698]
[1758242233773,0.02664081,248.1,248.08,7.07]
[1758242233981,0.02664081,248.1,248.06,4.69173425]
[1758242234386,0.02664081,248.1,248.07,7.07]
[1758242234586,0.02664081,248.1,248.06,4.69173425]
[1758242234786,0.02664081,248.1,248.07,7.07]
[1758242235285,0.02664081,248.1,248.07,10.43767727]
[1758242235489,0.02664081,248.1,248.09,7.07]
[1758242237094,0.02664081,248.1,248.09,8.39405698]
[1758242237391,0.02664081,248.1,248.09,8.79405698]
[1758242239693,0.02664081,248.1,248.09,8.39405698]
[1758242243200,0.02664081,248.1,248.09,11.76520116]
[1758242243897,8.27405698,248.26,248.09,100.28405698]
[1758242244103,8.27405698,248.26,248.17,8.39405698]
[1758242245001,6.95,248.26,248.19,8.39405698]
[1758242245296,6.95,248.26,248.19,8.42020778]
[1758242245896,6.95,248.31,248.19,8.42020778]
[1758242246104,8.27405698,248.31,248.23,1.32405698]
[1758242246304,6.95,248.31,248.24,7.07]
[1758242246902,6.95,248.31,248.25,0.02603443]
[1758242247399,6.95,248.31,248.25,1.35009141]
[1758242252908,6.95,248.31,248.25,0.02603443]
[1758242253707,8.27405698,248.31,248.25,0.02603443]
[1758242258606,7.03,248.26,248.25,0.02603443]
[1758242258906,8.35405698,248.26,248.25,0.02603443]
[1758242259304,7.03,248.26,248.25,0.02603443]
[1758242261011,8.35405698,248.26,248.25,0.02603443]
[1758242263023,7.03,248.26,248.25,0.02603443]
[1758242263211,1.32405698,248.3,248.25,0.02603443]
[1758242263414,1.32405698,248.29,248.25,0.02603443]
[1758242263609,7.03,248.28,248.25,0.02603443]
[1758242264715,1.32405698,248.29,248.25,0.02603443]
[1758242265122,7.03,248.28,248.25,0.02603443]
[1758242265818,1.32405698,248.29,248.25,0.02603443]
[1758242266019,7.03,248.28,248.25,0.02603443]
[1758242267418,1.32405698,248.3,248.25,0.02603443]
[1758242267922,7.03,248.29,248.25,0.02603443]
[1758242268521,7.03,248.34,248.25,0.02603443]
[1758242268722,7.03,248.3,248.25,0.02603443]
[1758242269021,8.35405698,248.31,248.25,0.02603443]
[1758242271320,7.03,248.28,248.25,0.02603443]
[1758242271622,8.35405698,248.26,248.25,0.02603443]
[1758242274326,7.03,248.26,248.25,0.02603443]
[1758242277228,8.75405698,248.26,248.25,0.02603443]
[1758242278625,8.75405698,248.26,248.11,3.6255]
[1758242278827,6.92,248.19,248.11,4.94955698]
[1758242279126,6.92,248.19,248.12,8.32405698]
[1758242279828,6.92,248.19,248.12,7.0]
[1758242280028,8.24405698,248.19,248.12,7.0]
[1758242280825,1.32405698,248.15,248.08,3.369168]
[1758242281022,1.32405698,248.13,248.07,3.369168]
[1758242281224,6.92,248.12,248.04,7.0]
[1758242281526,1.32405698,248.11,248.04,7.0]
[1758242281728,6.94659365,248.12,248.04,7.0]
[1758242284531,0.02659365,248.12,248.04,3.369168]
[1758242284833,0.02659365,248.12,248.06,2.06860968]
[1758242285633,0.02659365,248.12,248.06,7.0]
[1758242289536,0.02659365,248.12,248.07,0.02805522]
[1758242289828,0.02659365,248.12,248.07,7.02805522]
[1758242290034,6.92,248.11,248.07,0.02805522]
[1758242290233,0.02659365,248.12,248.08,7.0]
[1758242290430,0.02659365,248.12,248.1,7.0]
[1758242290835,0.02659365,248.12,248.09,2.06860968]
[1758242291631,0.02659365,248.12,248.1,7.0]
[1758242291931,0.02659365,248.12,248.09,2.06860968]
[1758242292836,0.02659365,248.12,248.1,7.0]
[1758242293336,0.02659365,248.12,248.09,2.06860968]
[1758242294135,0.02659365,248.12,248.1,7.0]
[1758242294335,0.02659365,248.12,248.09,7.0]
[1758242294534,0.02659365,248.12,248.08,2.06860968]
[1758242294735,0.02659365,248.12,248.09,7.0]
[1758242294935,0.02659365,248.12,248.08,2.06860968]
[1758242295633,0.02659365,248.12,248.09,7.0]
[1758242295838,0.02659365,248.12,248.08,2.06860968]
[1758242296040,0.02659365,248.12,248.09,7.0]
[1758242296238,0.02659365,248.12,248.08,2.06860968]
[1758242296537,0.02659365,248.12,248.09,7.0]
[1758242296737,0.02659365,248.12,248.08,2.06860968]
[1758242297035,0.02659365,248.12,248.09,7.0]
[1758242297233,0.02659365,248.12,248.07,7.02805522]
[1758242297234,6.92,248.11,248.07,7.02805522]
[1758242297638,0.02659365,248.12,248.07,7.02805522]
[1758242298539,6.92,248.11,248.07,7.02805522]
[1758242299039,6.92,248.11,248.08,7.0]
[1758242299238,0.02659365,248.12,248.07,0.02805522]
[1758242299442,0.02659365,248.12,248.07,2.0966649]
[1758242299642,0.02659365,248.12,248.08,7.0]
[1758242299837,0.02659365,248.12,248.07,2.0966649]
[1758242300541,0.02659365,248.12,248.08,7.0]
[1758242300731,0.02659365,248.12,248.07,2.0966649]
[1758242301041,0.02659365,248.12,248.08,7.0]
[1758242301444,0.02659365,248.12,248.07,2.0966649]
[1758242301746,6.94659365,248.12,248.08,7.0]
[1758242303239,0.02659365,248.12,248.07,2.0966649]
[1758242304342,0.02659365,248.12,248.07,0.02805522]
[1758242305343,0.02659365,248.12,248.08,7.0]
[1758242307234,6.92,248.11,248.07,0.02805522]
[1758242307436,0.02659365,248.12,248.07,0.02805522]
[1758242307643,6.92,248.11,248.07,0.02805522]
[1758242308036,6.58,248.11,248.07,0.02805522]
[1758242308546,6.58,248.11,248.07,6.87805522]
[1758242309143,0.02659365,248.12,248.08,6.85]
[1758242309648,0.02659365,248.12,248.07,0.02805522]
[1758242310147,0.02659365,248.12,248.08,6.85]
[1758242310341,0.02659365,248.12,248.07,0.02805522]
[1758242310537,0.02659365,248.12,248.08,6.85]
[1758242310742,0.02659365,248.12,248.07,0.02805522]
[1758242310944,0.02659365,248.12,248.08,6.85]
[1758242311145,0.02659365,248.12,248.07,0.02805522]
[1758242311346,0.02659365,248.12,248.08,6.85]
[1758242311646,0.02659365,248.12,248.07,0.02805522]
[1758242312449,0.02659365,248.12,248.08,6.85]
[1758242312746,0.02659365,248.12,248.07,0.02805522]
[1758242313143,0.02659365,248.12,248.08,6.85]
[1758242313344,0.02659365,248.12,248.07,0.02805522]
[1758242313749,0.02659365,248.12,248.08,6.85]
[1758242313941,0.02659365,248.12,248.07,0.02805522]
[1758242314345,0.02659365,248.12,248.08,6.85]
[1758242314546,0.02659365,248.12,248.07,0.02805522]
[1758242314746,0.02659365,248.12,248.08,6.85]
[1758242314948,0.02659365,248.12,248.07,0.02805522]
[1758242315148,0.02659365,248.12,248.07,3.39034738]
[1758242315545,0.02659365,248.12,248.08,6.85]
[1758242315849,0.02659365,248.12,248.07,3.39034738]
[1758242316844,0.02659365,248.12,248.08,10.21229216]
[1758242317045,0.02659365,248.12,248.07,3.39034738]
[1758242317241,0.02659365,248.12,248.08,3.36229216]
[1758242317647,0.02659365,248.12,248.09,6.85]
[1758242317847,0.02659365,248.12,248.08,3.36229216]
[1758242318048,0.02659365,248.12,248.09,6.85]
[1758242318247,0.02659365,248.12,248.08,3.36229216]
[1758242318650,0.02659365,248.12,248.09,6.85]
[1758242319250,0.02659365,248.12,248.09,10.21229216]
[1758242320051,0.02659365,248.12,248.1,6.85]
[1758242320948,4.52523266,248.28,248.13,6.85]
[1758242320949,8.64860968,248.28,248.13,6.85]
[1758242321254,8.64860968,248.28,248.19,6.85]
[1758242322152,8.64860968,248.28,248.21,0.02693797]
[1758242323256,6.58,248.28,248.21,0.02693797]
[1758242329370,6.58,248.28,248.22,6.85]
[1758242329767,2.06860968,248.36,248.22,6.85]
[1758242329768,6.58,248.35,248.22,6.85]
[1758242330468,6.58,248.35,248.29,6.85]
[1758242330958,2.06860968,248.43,248.29,10.4729]
[1758242331158,6.58,248.42,248.29,10.4729]
[1758242331867,6.58,248.42,248.33,0.0299766]
[1758242336766,2.06860968,248.41,248.33,0.0299766]
[1758242336965,6.98,248.37,248.33,0.0299766]
[1758242337467,2.06860968,248.38,248.33,0.0299766]
[1758242338069,6.87,248.37,248.33,0.0299766]
[1758242338269,2.06860968,248.38,248.33,0.0299766]
[1758242338465,8.93860968,248.43,248.33,0.0299766]
[1758242339870,6.87,248.43,248.33,0.0299766]
[1758242340069,8.93860968,248.43,248.33,0.0299766]
[1758242341368,6.87,248.43,248.33,6.5499766]
[1758242341873,6.87,248.43,248.36,1.32033572]
[1758242343270,6.87,248.43,248.33,6.5499766]
[1758242343480,6.87,248.41,248.34,1.32033572]
[1758242344071,6.87,248.41,248.35,0.02631435]
[1758242347974,8.19033572,248.36,248.35,0.02631435]
[1758242348180,6.87,248.36,248.35,0.02631435]
[1758242348477,8.19033572,248.36,248.35,0.02631435]
[1758242348882,6.87,248.36,248.35,0.02631435]
[1758242349180,8.19033572,248.36,248.35,0.02631435]
[1758242353684,18.02,248.4,248.35,0.02631435]
[1758242353885,1.32033572,248.39,248.35,0.02631435]
[1758242354082,6.87,248.38,248.35,0.02631435]
[1758242354282,1.32033572,248.39,248.35,0.02631435]
[1758242354482,6.87,248.36,248.35,0.02631435]
[1758242361791,6.87,248.38,248.35,0.02631435]
[1758242362287,1.32033572,248.41,248.35,0.02631435]
[1758242362489,6.87,248.4,248.35,0.02631435]
[1758242362885,1.32033572,248.41,248.35,0.02631435]
[1758242363186,6.87,248.4,248.35,0.02631435]
[1758242363393,1.32033572,248.43,248.35,0.02631435]
[1758242363587,1.32033572,248.41,248.35,0.02631435]
[1758242363792,6.87,248.4,248.35,0.02631435]
[1758242363988,1.32033572,248.41,248.35,0.02631435]
[1758242364394,6.87,248.41,248.35,1.34665007]
[1758242364587,6.87,248.41,248.37,1.32033572]
[1758242364793,6.87,248.41,248.38,6.52]
[1758242365492,6.87,248.48,248.38,6.52]
[1758242365793,6.87,248.45,248.38,6.52]
[1758242365991,6.87,248.45,248.37,1.32033572]
[1758242366193,6.87,248.45,248.41,0.0298005]
[1758242367094,1.32033572,248.45,248.41,0.0298005]
[1758242367289,6.87,248.44,248.41,0.0298005]
[1758242367496,1.32033572,248.45,248.41,0.0298005]
[1758242367697,6.87,248.44,248.41,0.0298005]
[1758242367992,6.87,248.48,248.41,0.0298005]
[1758242368188,6.55,248.46,248.41,0.0298005]
[1758242368797,1.32033572,248.47,248.41,0.0298005]
[1758242368992,6.55,248.46,248.41,0.0298005]
[1758242369196,6.55,248.48,248.41,0.0298005]
[1758242369391,1.32033572,248.46,248.41,0.0298005]
[1758242369692,6.55,248.45,248.41,0.0298005]
[1758242369897,1.32033572,248.43,248.41,0.0298005]
[1758242370197,6.55,248.42,248.41,0.0298005]
[1758242370495,1.32033572,248.46,248.41,0.0298005]
[1758242370693,6.55,248.45,248.41,0.0298005]
[1758242370992,1.32033572,248.46,248.41,0.0298005]
[1758242371498,6.55,248.45,248.41,0.0298005]
[1758242371993,1.32033572,248.46,248.41,0.0298005]
[1758242372301,0.7008146,248.49,248.41,0.0298005]
[1758242372591,1.32033572,248.46,248.41,0.0298005]
[1758242372794,6.55,248.45,248.41,0.0298005]
[1758242373202,1.32033572,248.46,248.41,0.0298005]
[1758242373887,6.55,248.45,248.41,0.0298005]
[1758242374887,6.55,248.48,248.41,0.0298005]
[1758242375297,1.32033572,248.46,248.41,0.0298005]
[1758242375996,6.55,248.45,248.41,0.0298005]
[1758242376191,1.32033572,248.46,248.41,0.0298005]
[1758242376388,0.7008146,248.49,248.41,0.0298005]
[1758242376596,1.32033572,248.46,248.41,0.0298005]
[1758242376792,6.55,248.45,248.41,0.0298005]
[1758242377794,6.55,248.45,248.41,6.6198005]
[1758242377994,1.32033572,248.46,248.41,0.0298005]
[1758242378197,6.55,248.45,248.41,0.0298005]
[1758242379499,1.32033572,248.46,248.41,0.0298005]
[1758242380101,6.55,248.45,248.41,0.0298005]
[1758242380398,1.32033572,248.46,248.41,0.0298005]
[1758242381500,1.32033572,248.44,248.41,0.0298005]
[1758242381794,6.55,248.43,248.41,0.0298005]
[1758242381994,1.32033572,248.44,248.41,0.0298005]
[1758242382196,6.55,248.43,248.41,0.0298005]
[1758242382496,1.32033572,248.44,248.41,0.0298005]
[1758242382896,6.55,248.48,248.41,0.0298005]
[1758242383202,1.32033572,248.44,248.41,0.0298005]
[1758242383395,6.55,248.43,248.41,0.0298005]
[1758242384191,7.87033572,248.42,248.41,0.0298005]
[1758242384899,0.7008146,248.49,248.41,0.0298005]
[1758242385100,1.32033572,248.47,248.41,0.0298005]